[Event "Hull 4NCL GM Congress 2019"]
[Site "Hull"]
[Date "2019.10.30"]
[Round "1.2"]
[White "Plat, Vojtech"]
[Black "Harvey, Marcus R"]
[Result "1/2-1/2"]
[ECO "B02"]
[WhiteElo "2573"]
[BlackElo "2405"]
[Annotator "ChessBase"]
[PlyCount "65"]
[EventDate "2019.10.30"]
[EventType "tourn"]
[EventCountry "ENG"]
[SourceTitle "playchess.com"]
[Source "ChessBase"]
[SourceQuality "1"]
[TimeControl "5400+30"]

1. b3 {[%emt 0:00:00]} Nf6 {[%emt 0:00:04]} 2. Bb2 {[%emt 0:00:00]} g6 {[%emt 0:00:21]} 3. e4 {[%emt 0:00:06]} Bg7 {[%emt 0:00:13]} 4. e5 {[%emt 0:00:34]} Nd5 {[%emt 0:00:35]} 5. c4 {[%emt 0:01:08]} Nb6 {[%emt 0:00:22]} 6. d4 {[%emt 0:00:13]} d6 {[%emt 0:01:24]} 7. exd6 {[%emt 0:00:06]} exd6 {[%emt 0:01:31]} 8. Nf3 {[%emt 0:00:10]} O-O {[%emt 0:00:26]} 9. Be2 {[%emt 0:00:04]} Bg4 {[%emt 0:03:12]} 10. O-O {[%emt 0:00:13]} d5 {[%emt 0:01:13]} 11. c5 {[%emt 0:00:27]} N6d7 {[%emt 0:00:24]} 12. Nc3 {[%emt 0:03:10]} Nc6 {[%emt 0:02:39]} 13. Na4 {[%emt 0:06:14]} Re8 {[%emt 0:03:10]} 14. h3 {[%emt 0:00:34]} Bxf3 {[%emt 0:01:51]} 15. Bxf3 {[%emt 0:00:04]} Nf6 {[%emt 0:00:43]} 16. a3 {[%emt 0:01:45]} Ne4 {[%emt 0:00:59]} 17. Qd3 {[%emt 0:03:24]} Qg5 {[%emt 0:02:54]} 18. Rad1 {[%emt 0:01:23]} Rad8 {[%emt 0:04:59]} 19. b4 {[%emt 0:03:19]} f5 {[%emt 0:05:15]} 20. b5 {[%emt 0:01:21]} Na5 {[%emt 0:01:50]} 21. Bc1 {[%emt 0:00:53]} Qh4 {[%emt 0:01:54]} 22. Nb2 {[%emt 0:02:02]} b6 {[%emt 0:05:11]} 23. Qc2 {[%emt 0:02:00]} g5 {[%emt 0:04:15]} 24. Rfe1 {[%emt 0:02:31]} Bf6 {[%emt 0:05:35]} 25. Re2 {[%emt 0:02:26]} Re7 {[%emt 0:05:19]} 26. Nd3 {[%emt 0:03:52]} g4 {[%emt 0:08:12]} 27. hxg4 {[%emt 0:00:12]} Bxd4 {[%emt 0:00:40]} 28. Bxe4 {[%emt 0:04:39]} fxe4 {[%emt 0:02:46]} 29. Nf4 {[%emt 0:01:37]} bxc5 {[%emt 0:01:29]} 30. Qa4 {[%emt 0:06:38]} Nc4 {[%emt 0:04:03]} 31. Nxd5 {[%emt 0:02:11]} Rxd5 {[%emt 0:00:18]} 32. Qxc4 {[%emt 0:00:02]} Rf7 {[%emt 0:04:38]} 33. Qxd5 {[%emt 0:00:45]} 1/2-1/2

[Event "Hull 4NCL GM Congress 2019"]
[Site "Hull"]
[Date "2019.10.30"]
[Round "1.5"]
[White "Greet, Andrew N"]
[Black "Eggleston, David J"]
[Result "1-0"]
[ECO "B90"]
[WhiteElo "2414"]
[BlackElo "2394"]
[Annotator "ChessBase"]
[PlyCount "113"]
[EventDate "2019.10.30"]
[EventType "tourn"]
[EventCountry "ENG"]
[SourceTitle "playchess.com"]
[Source "ChessBase"]
[SourceQuality "1"]
[TimeControl "5400+30"]

1. e4 {[%emt 0:00:00]} c5 {[%emt 0:00:00]} 2. Nf3 {[%emt 0:00:00]} d6 {[%emt 0:00:00]} 3. d4 {[%emt 0:00:00]} Nf6 {[%emt 0:00:00]} 4. Nc3 {[%emt 0:00:00]} cxd4 {[%emt 0:00:00]} 5. Nxd4 {[%emt 0:00:07]} a6 {[%emt 0:00:03]} 6. Rg1 {[%emt 0:00:11]} Nc6 {[%emt 0:07:54]} 7. g4 {[%emt 0:02:45]} Nxd4 {[%emt 0:14:24]} 8. Qxd4 {[%emt 0:00:17]} e5 {[%emt 0:05:05]} 9. Qd1 {[%emt 0:01:50]} Be6 {[%emt 0:05:48]} 10. g5 {[%emt 0:00:43]} Nd7 {[%emt 0:00:04]} 11. Nd5 {[%emt 0:04:06]} Nb6 {[%emt 0:02:18]} 12. c3 {[%emt 0:05:17]} Nxd5 {[%emt 0:02:53]} 13. exd5 {[%emt 0:00:08]} Bd7 {[%emt 0:03:15]} 14. Bd3 {[%emt 0:09:34]} g6 {[%emt 0:00:35]} 15. h4 {[%emt 0:11:17]} h5 {[%emt 0:19:31]} 16. Be3 {[%emt 0:07:44]} Bg7 {[%emt 0:00:18]} 17. Qd2 {[%emt 0:09:24]} O-O {[%emt 0:02:48]} 18. Be4 {[%emt 0:01:16]} b5 {[%emt 0:01:26]} 19. O-O-O {[%emt 0:07:19]} a5 {[%emt 0:00:28]} 20. Kb1 {[%emt 0:00:12]} Qc8 {[%emt 0:01:34]} 21. Rc1 {[%emt 0:03:31]} Qa6 {[%emt 0:02:55]} 22. Qd3 {[%emt 0:03:36]} Rfc8 {[%emt 0:03:45]} 23. f3 {[%emt 0:01:44]} Rc4 {[%emt 0:01:25]} 24. Rc2 {[%emt 0:02:54]} Rac8 {[%emt 0:04:28]} 25. Rgc1 {[%emt 0:01:40]} Qb7 {[%emt 0:02:36]} 26. a3 {[%emt 0:10:46]} Qa8 {[%emt 0:04:06]} 27. Bf2 {[%emt 0:01:18]} Rb8 {[%emt 0:01:48]} 28. Ka1 {[%emt 0:04:31]} Rc7 {[%emt 0:00:35]} 29. Kb1 {[%emt 0:06:02]} Rcb7 {[%emt 0:01:18]} 30. c4 {[%emt 0:01:24]} bxc4 {[%emt 0:01:58]} 31. Qxc4 {[%emt 0:00:13]} Bb5 {[%emt 0:00:44]} 32. Qc3 {[%emt 0:01:27]} Ba4 {[%emt 0:00:22]} 33. Rd2 {[%emt 0:00:13]} Be8 {[%emt 0:04:35]} 34. Qe3 {[%emt 0:00:57]} Rb3 {[%emt 0:01:42]} 35. Qa7 {[%emt 0:01:26]} Qxa7 {[%emt 0:00:10]} 36. Bxa7 {[%emt 0:00:02]} R8b7 {[%emt 0:00:08]} 37. Rc8 {[%emt 0:01:41]} Kf8 {[%emt 0:05:39]} 38. Bc5 {[%emt 0:00:37]} Ke7 {[%emt 0:01:12]} 39. Bxd6+ {[%emt 0:00:22]} Kxd6 {[%emt 0:00:23]} 40. Rxe8 {[%emt 0:00:05]} Rc7 {[%emt 0:01:10]} 41. Rg8 {[%emt 0:01:55]} f5 {[%emt 0:00:23]} 42. gxf6 {[%emt 0:00:05]} Bxf6 {[%emt 0:00:01]} 43. Rxg6 {[%emt 0:00:06]} Rf7 {[%emt 0:00:07]} 44. Rc2 {[%emt 0:00:26]} Rb6 {[%emt 0:00:27]} 45. Rh6 {[%emt 0:00:22]} Kd7 {[%emt 0:00:23]} 46. Rc6 {[%emt 0:00:42]} Rxc6 {[%emt 0:00:37]} 47. dxc6+ {[%emt 0:00:02]} Kc7 {[%emt 0:00:06]} 48. Rxh5 {[%emt 0:00:15]} Be7 {[%emt 0:00:26]} 49. Rxe5 {[%emt 0:00:54]} Bxh4 {[%emt 0:00:05]} 50. Rxa5 {[%emt 0:00:13]} Bf2 {[%emt 0:00:04]} 51. Rb5 {[%emt 0:00:19]} Bb6 {[%emt 0:00:47]} 52. a4 {[%emt 0:00:12]} Rf8 {[%emt 0:00:13]} 53. a5 {[%emt 0:00:19]} Bd4 {[%emt 0:00:04]} 54. Rb7+ {[%emt 0:00:18]} Kd6 {[%emt 0:00:02]} 55. Rd7+ {[%emt 0:00:34]} Kc5 {[%emt 0:00:04]} 56. c7 {[%emt 0:00:22]} Bf6 {[%emt 0:00:09]} 57. Bb7 {[%emt 0:00:18]} 1-0

[Event "Hull 4NCL GM Congress 2019"]
[Site "Hull"]
[Date "2019.10.31"]
[Round "2.1"]
[White "Merry, Alan B"]
[Black "Eggleston, David J"]
[Result "0-1"]
[ECO "A29"]
[WhiteElo "2426"]
[BlackElo "2394"]
[Annotator "NA"]
[PlyCount "96"]
[EventDate "2019.10.30"]
[EventType "tourn"]
[EventCountry "ENG"]
[SourceTitle "playchess.com"]
[Source "ChessBase"]
[SourceQuality "1"]
[TimeControl "5400+30"]

1. c4 {[%emt 0:00:00]} e5 {[%emt 0:05:07]} 2. Nc3 {[%emt 0:00:00]} Nc6 {[%emt 0:00:32]} 3. Nf3 {[%emt 0:00:00]} Nf6 {[%emt 0:00:09]} 4. g3 {[%emt 0:01:19]} d5 {[%emt 0:00:18]} 5. cxd5 {[%emt 0:00:04]} Nxd5 {[%emt 0:00:05]} 6. Bg2 {[%emt 0:00:04]} Nb6 {[%emt 0:00:12]} 7. O-O {[%emt 0:05:07]} Be7 {[%emt 0:00:26]} 8. a3 {[%emt 0:01:09]} O-O {[%emt 0:03:39]} 9. b4 {[%emt 0:01:15]} Re8 {[%emt 0:02:48]} 10. d3 {[%emt 0:01:30]} Bf8 {[%emt 0:01:42]} 11. Bb2 {[%emt 0:02:26]} a5 {[%emt 0:01:01]} 12. b5 {[%emt 0:00:05]} Nd4 {[%emt 0:00:04]} 13. Nd2 {[%emt 0:07:11]} a4 {[%emt 0:00:08]} 14. Rb1 {[%emt 0:09:04]} c6 {[%emt 0:07:20]} 15. bxc6 {[%emt 0:00:43]} Nxc6 {[%emt 0:00:12]} 16. Nc4 $15 {[%emt 0:11:47]} Nxc4 {[%emt 0:03:22]} 17. dxc4 {[%emt 0:00:05]} Nd4 {[%emt 0:11:55]} 18. e3 {[%emt 0:14:32]} Nb3 {[%emt 0:00:56]} 19. Qc2 {[%emt 0:02:49]} Qd2 {[%emt 0:12:53]} 20. Qe4 {[%emt 0:24:52]} Nc5 {[%emt 0:08:23]} 21. Qd5 {[%emt 0:01:02]} Qxd5 {[%emt 0:00:49]} 22. Bxd5 {[%emt 0:00:51]} Bf5 {[%emt 0:12:31]} 23. e4 {[%emt 0:00:15]} Bh3 {[%emt 0:00:05]} 24. Rfd1 {[%emt 0:00:23]} Bg4 {[%emt 0:06:59]} 25. f3 {[%emt 0:00:54]} Bxf3 {[%emt 0:01:39]} 26. Bxf7+ {[%emt 0:00:34]} Kxf7 {[%emt 0:00:08]} 27. Rf1 {[%emt 0:00:03]} Kg8 {[%emt 0:00:54]} 28. Rxf3 {[%emt 0:00:04]} Rad8 {[%emt 0:01:05]} 29. Bc1 {[%emt 0:01:53]} Rd4 {[%emt 0:02:46]} 30. Be3 {[%emt 0:06:10]} Rxc4 {[%emt 0:04:50]} 31. Nd5 {[%emt 0:02:24]} Nxe4 {[%emt 0:05:19]} 32. Rxb7 {[%emt 0:00:07]} Bxa3 {[%emt 0:01:58]} 33. Nb6 {[%emt 0:01:41]} Rb4 {[%emt 0:01:21]} 34. Rff7 {[%emt 0:01:24]} Rb1+ {[%emt 0:00:14]} 35. Kg2 {[%emt 0:00:05]} Bf8 {[%emt 0:01:25]} 36. Nxa4 {[%emt 0:00:37]} Ra1 {[%emt 0:00:40]} 37. Nc5 {[%emt 0:03:39]} Nd6 {[%emt 0:00:35]} 38. Ra7 {[%emt 0:00:08]} Re1 {[%emt 0:01:11]} 39. Kf2 {[%emt 0:00:54]} Rh1 {[%emt 0:00:31]} 40. Rfd7 {[%emt 0:01:44]} Rxh2+ {[%emt 0:00:12]} 41. Kg1 {[%emt 0:00:49]} Re2 {[%emt 0:00:32]} 42. Bf2 {[%emt 0:00:14]} e4 {[%emt 0:01:49]} 43. Bd4 {[%emt 0:00:24]} Nf5 {[%emt 0:00:15]} 44. Nb3 {[%emt 0:00:42]} Rb8 {[%emt 0:00:40]} 45. Rab7 {[%emt 0:00:35]} Rxb7 {[%emt 0:00:11]} 46. Rxb7 {[%emt 0:00:04]} Nxg3 {[%emt 0:00:57]} 47. Rb8 {[%emt 0:00:41]} Kf7 {[%emt 0:00:12]} 48. Nc5 {[%emt 0:00:55]} Nf5 {[%emt 0:00:59]} 0-1

[Event "Hull 4NCL GM Congress 2019"]
[Site "Hull"]
[Date "2019.10.31"]
[Round "2.2"]
[White "Haria, Ravi"]
[Black "Greet, Andrew N"]
[Result "1/2-1/2"]
[ECO "C09"]
[WhiteElo "2463"]
[BlackElo "2414"]
[Annotator "ChessBase"]
[PlyCount "130"]
[EventDate "2019.10.30"]
[EventType "tourn"]
[EventCountry "ENG"]
[SourceTitle "playchess.com"]
[Source "ChessBase"]
[SourceQuality "1"]
[TimeControl "5400+30"]

1. e4 {[%emt 0:00:00]} e6 {[%emt 0:00:00]} 2. d4 {[%emt 0:00:00]} d5 {[%emt 0:00:04]} 3. Nd2 {[%emt 0:00:00]} c5 {[%emt 0:00:07]} 4. Ngf3 {[%emt 0:00:00]} Nc6 {[%emt 0:00:13]} 5. exd5 {[%emt 0:01:29]} exd5 {[%emt 0:00:08]} 6. Bb5 {[%emt 0:00:06]} Qe7+ {[%emt 0:00:08]} 7. Be2 {[%emt 0:01:12]} Nf6 {[%emt 0:00:26]} 8. O-O {[%emt 0:01:05]} Qc7 {[%emt 0:00:10]} 9. Re1 {[%emt 0:06:06]} cxd4 {[%emt 0:00:09]} 10. Nb3 {[%emt 0:00:47]} Bb4 {[%emt 0:00:15]} 11. Bd2 {[%emt 0:02:54]} Bxd2 {[%emt 0:00:07]} 12. Qxd2 {[%emt 0:00:18]} O-O {[%emt 0:00:08]} 13. Nfxd4 {[%emt 0:02:57]} Bd7 {[%emt 0:00:17]} 14. Nxc6 {[%emt 0:08:54]} Bxc6 {[%emt 0:25:56]} 15. c3 {[%emt 0:02:18]} Rfe8 {[%emt 0:01:50]} 16. f3 {[%emt 0:06:44]} Qb6+ {[%emt 0:05:00]} 17. Qd4 {[%emt 0:05:11]} Nd7 {[%emt 0:02:12]} 18. Bf1 {[%emt 0:04:06]} Rxe1 {[%emt 0:12:58]} 19. Rxe1 {[%emt 0:00:10]} Nf8 {[%emt 0:00:07]} 20. Rd1 {[%emt 0:08:56]} Ne6 {[%emt 0:00:21]} 21. Qf2 {[%emt 0:01:11]} Qxf2+ {[%emt 0:04:43]} 22. Kxf2 {[%emt 0:00:10]} Kf8 {[%emt 0:02:31]} 23. Nd4 {[%emt 0:07:41]} Ke7 {[%emt 0:01:43]} 24. h4 {[%emt 0:04:55]} h6 {[%emt 0:02:32]} 25. g3 {[%emt 0:00:53]} Nxd4 {[%emt 0:03:00]} 26. Rxd4 {[%emt 0:00:24]} g5 {[%emt 0:00:13]} 27. Bd3 {[%emt 0:02:23]} Ke6 {[%emt 0:02:09]} 28. a3 {[%emt 0:08:02]} a5 {[%emt 0:06:18]} 29. Bb1 {[%emt 0:02:17]} Rd8 {[%emt 0:09:21]} 30. Ba2 {[%emt 0:02:57]} Rd7 {[%emt 0:03:06]} 31. Ke3 {[%emt 0:07:25]} f6 {[%emt 0:00:32]} 32. Bb1 {[%emt 0:02:53]} Rg7 {[%emt 0:01:12]} 33. Kf2 {[%emt 0:00:46]} Re7 {[%emt 0:03:25]} 34. Rd1 {[%emt 0:02:08]} Kd6 {[%emt 0:01:59]} 35. Bd3 {[%emt 0:00:31]} Re8 {[%emt 0:01:34]} 36. Rh1 {[%emt 0:01:19]} Ke5 {[%emt 0:08:01]} 37. Re1+ {[%emt 0:05:59]} Kd6 {[%emt 0:00:05]} 38. Rxe8 {[%emt 0:00:20]} Bxe8 {[%emt 0:00:03]} 39. Ke3 {[%emt 0:00:05]} Ke5 {[%emt 0:00:38]} 40. f4+ {[%emt 0:00:04]} gxf4+ {[%emt 0:00:51]} 41. gxf4+ {[%emt 0:00:02]} Kd6 {[%emt 0:00:10]} 42. Kd4 {[%emt 0:01:27]} b6 {[%emt 0:01:33]} 43. Be2 {[%emt 0:00:40]} Ba4 {[%emt 0:00:34]} 44. b4 {[%emt 0:01:16]} Bb3 {[%emt 0:00:28]} 45. Bg4 {[%emt 0:02:29]} Bc4 {[%emt 0:00:22]} 46. Bf5 {[%emt 0:00:25]} Bb3 {[%emt 0:00:18]} 47. Bd3 {[%emt 0:00:13]} Ba2 {[%emt 0:00:45]} 48. Ke3 {[%emt 0:00:21]} Bb3 {[%emt 0:00:42]} 49. Bf5 {[%emt 0:00:36]} Kc6 {[%emt 0:00:40]} 50. Kd4 {[%emt 0:00:41]} Kd6 {[%emt 0:00:09]} 51. Bb1 {[%emt 0:00:19]} Kc6 {[%emt 0:00:41]} 52. Bg6 {[%emt 0:00:39]} Kd6 {[%emt 0:00:08]} 53. Bf7 {[%emt 0:01:05]} Bc4 {[%emt 0:00:16]} 54. Bg6 {[%emt 0:00:27]} Bb3 {[%emt 0:00:12]} 55. Bd3 {[%emt 0:00:22]} Ba2 {[%emt 0:00:24]} 56. Bc2 {[%emt 0:00:06]} Bc4 {[%emt 0:00:09]} 57. Ke3 {[%emt 0:00:10]} Bb5 {[%emt 0:01:33]} 58. Bb3 {[%emt 0:00:19]} Bf1 {[%emt 0:01:32]} 59. Kd4 {[%emt 0:00:47]} Bg2 {[%emt 0:00:07]} 60. Bc2 {[%emt 0:00:24]} Bf3 {[%emt 0:00:29]} 61. Bd3 {[%emt 0:01:01]} Bg2 {[%emt 0:01:00]} 62. Ba6 {[%emt 0:00:26]} Bh3 {[%emt 0:00:30]} 63. Bb7 {[%emt 0:00:51]} Be6 {[%emt 0:00:11]} 64. Ba8 {[%emt 0:00:37]} Bf7 {[%emt 0:00:11]} 65. Bb7 {[%emt 0:00:13]} Be6 {[%emt 0:00:07]} 1/2-1/2

[Event "Hull 4NCL GM Congress 2019"]
[Site "Hull"]
[Date "2019.10.31"]
[Round "2.3"]
[White "Gonda, Laszlo"]
[Black "Palliser, Richard J D"]
[Result "1/2-1/2"]
[ECO "E97"]
[WhiteElo "2541"]
[BlackElo "2413"]
[Annotator "ChessBase"]
[PlyCount "55"]
[EventDate "2019.10.30"]
[EventType "tourn"]
[EventCountry "ENG"]
[SourceTitle "playchess.com"]
[Source "ChessBase"]
[SourceQuality "1"]
[TimeControl "5400+30"]

1. d4 {[%emt 0:00:00]} Nf6 {[%emt 0:01:28]} 2. c4 {[%emt 0:00:00]} g6 {[%emt 0:00:07]} 3. Nc3 {[%emt 0:00:00]} Bg7 {[%emt 0:00:05]} 4. e4 {[%emt 0:00:00]} d6 {[%emt 0:00:04]} 5. Nf3 {[%emt 0:00:00]} O-O {[%emt 0:00:08]} 6. Be2 {[%emt 0:00:00]} e5 {[%emt 0:00:04]} 7. O-O {[%emt 0:00:00]} Nc6 {[%emt 0:00:04]} 8. Be3 {[%emt 0:00:00]} Ng4 {[%emt 0:00:49]} 9. Bg5 {[%emt 0:00:13]} f6 {[%emt 0:00:05]} 10. Bh4 {[%emt 0:00:05]} g5 {[%emt 0:00:30]} 11. Bg3 {[%emt 0:00:03]} Nh6 {[%emt 0:00:23]} 12. dxe5 {[%emt 0:00:07]} fxe5 {[%emt 0:00:44]} 13. Nd5 {[%emt 0:00:14]} Nf7 {[%emt 0:00:27]} 14. Rc1 {[%emt 0:02:10]} Nd4 {[%emt 0:00:51]} 15. Nxd4 {[%emt 0:02:16]} exd4 {[%emt 0:00:43]} 16. c5 {[%emt 0:05:08]} c6 {[%emt 0:00:33]} 17. Nb4 {[%emt 0:00:02]} dxc5 {[%emt 0:04:20]} 18. Rxc5 {[%emt 0:00:08]} Qe7 {[%emt 0:01:34]} 19. Nd3 {[%emt 0:00:26]} Qxe4 {[%emt 0:12:36]} 20. Re1 {[%emt 0:04:17]} Qe6 {[%emt 0:08:57]} 21. Ne5 {[%emt 0:20:56]} Qd6 {[%emt 0:19:15]} 22. Qc1 {[%emt 0:09:32]} Nxe5 {[%emt 0:04:21]} 23. Rxe5 {[%emt 0:00:43]} Qd8 {[%emt 0:18:39]} 24. Bc4+ {[%emt 0:11:24]} Kh8 {[%emt 0:00:27]} 25. Rxg5 {[%emt 0:00:04]} Bf5 {[%emt 0:03:21]} 26. Rxg7 {[%emt 0:00:58]} Kxg7 {[%emt 0:00:01]} 27. Be5+ {[%emt 0:00:05]} Kg6 {[%emt 0:00:04]} 28. Qf4 {[%emt 0:06:50]} 1/2-1/2

[Event "Hull 4NCL GM Congress 2019"]
[Site "Hull"]
[Date "2019.10.31"]
[Round "2.4"]
[White "Harvey, Marcus R"]
[Black "Roberson, Peter T"]
[Result "1/2-1/2"]
[ECO "E32"]
[WhiteElo "2405"]
[BlackElo "2437"]
[Annotator "NA"]
[PlyCount "81"]
[EventDate "2019.10.30"]
[EventType "tourn"]
[EventCountry "ENG"]
[SourceTitle "playchess.com"]
[Source "ChessBase"]
[SourceQuality "1"]
[TimeControl "5400+30"]

1. d4 {[%emt 0:00:00]} Nf6 {[%emt 0:00:00]} 2. c4 {[%emt 0:00:00]} e6 {[%emt 0:00:00]} 3. Nc3 {[%emt 0:00:15]} Bb4 {[%emt 0:00:13]} 4. Qc2 {[%emt 0:00:04]} O-O {[%emt 0:00:41]} 5. e4 {[%emt 0:00:06]} d5 {[%emt 0:03:06]} 6. e5 {[%emt 0:00:12]} Ne4 {[%emt 0:00:47]} 7. Bd3 {[%emt 0:00:04]} c5 {[%emt 0:03:37]} 8. Nf3 {[%emt 0:00:37]} cxd4 {[%emt 0:01:36]} 9. Nxd4 {[%emt 0:00:05]} Nd7 {[%emt 0:01:32]} 10. Bf4 {[%emt 0:00:04]} Ndc5 {[%emt 0:04:38]} 11. O-O {[%emt 0:03:40]} Bxc3 {[%emt 0:05:21]} 12. bxc3 {[%emt 0:00:16]} Nxd3 {[%emt 0:07:14]} 13. Qxd3 {[%emt 0:00:11]} b6 {[%emt 0:03:07]} 14. cxd5 {[%emt 0:03:49]} Qxd5 {[%emt 0:01:59]} 15. c4 {[%emt 0:02:43]} Nc5 {[%emt 0:05:34]} 16. Qxh7+ {[%emt 0:01:49]} Kxh7 {[%emt 0:00:08]} 17. cxd5 {[%emt 0:00:08]} exd5 {[%emt 0:00:58]} 18. Rfd1 {[%emt 0:00:53]} Ne6 $11 {[%emt 0:09:14]} 19. Be3 {[%emt 0:03:01]} Nxd4 {[%emt 0:01:08]} 20. Bxd4 {[%emt 0:01:15]} Be6 {[%emt 0:05:01]} 21. Rac1 {[%emt 0:01:51]} Rfc8 {[%emt 0:01:25]} 22. h3 {[%emt 0:00:45]} Rc4 {[%emt 0:07:11]} 23. Rxc4 {[%emt 0:00:19]} dxc4 {[%emt 0:00:02]} 24. Bc3 {[%emt 0:00:26]} Rc8 {[%emt 0:05:49]} 25. g4 {[%emt 0:02:40]} b5 {[%emt 0:17:54]} 26. a3 {[%emt 0:00:44]} a5 {[%emt 0:02:22]} 27. Rc1 {[%emt 0:01:59]} b4 {[%emt 0:09:42]} 28. axb4 {[%emt 0:00:16]} axb4 {[%emt 0:00:01]} 29. Bxb4 {[%emt 0:00:07]} g5 {[%emt 0:01:14]} 30. Rc3 {[%emt 0:11:31]} Rd8 {[%emt 0:00:52]} 31. Bd6 {[%emt 0:00:20]} Kg6 {[%emt 0:01:19]} 32. Kg2 {[%emt 0:00:33]} f5 {[%emt 0:01:34]} 33. gxf5+ {[%emt 0:03:34]} Kxf5 {[%emt 0:00:17]} 34. Rg3 {[%emt 0:00:16]} Rd7 {[%emt 0:00:30]} 35. Kf3 {[%emt 0:02:23]} Rb7 {[%emt 0:00:29]} 36. Ke3 {[%emt 0:01:23]} Rb3+ {[%emt 0:00:33]} 37. Kd4 {[%emt 0:00:04]} Kg6 {[%emt 0:00:43]} 38. h4 {[%emt 0:05:44]} Rd3+ {[%emt 0:00:13]} 39. Rxd3 {[%emt 0:00:24]} cxd3 {[%emt 0:00:02]} 40. h5+ {[%emt 0:00:12]} Kxh5 {[%emt 0:00:18]} 41. Kxd3 {[%emt 0:00:37]} 1/2-1/2

[Event "Hull 4NCL GM Congress 2019"]
[Site "Hull"]
[Date "2019.10.31"]
[Round "2.5"]
[White "Turner, Matthew J"]
[Black "Plat, Vojtech"]
[Result "1-0"]
[ECO "B22"]
[WhiteElo "2519"]
[BlackElo "2573"]
[Annotator "ChessBase"]
[PlyCount "101"]
[EventDate "2019.10.30"]
[EventType "tourn"]
[EventCountry "ENG"]
[SourceTitle "playchess.com"]
[Source "ChessBase"]
[SourceQuality "1"]
[TimeControl "5400+30"]

1. e4 {[%emt 0:00:00]} c5 {[%emt 0:00:00]} 2. c3 {[%emt 0:00:00]} d5 {[%emt 0:00:57]} 3. exd5 {[%emt 0:00:14]} Qxd5 {[%emt 0:00:05]} 4. d4 {[%emt 0:00:19]} Nc6 {[%emt 0:00:04]} 5. Nf3 {[%emt 0:00:57]} Bf5 {[%emt 0:00:05]} 6. Be3 {[%emt 0:02:06]} cxd4 {[%emt 0:02:41]} 7. Nxd4 {[%emt 0:00:37]} O-O-O {[%emt 0:03:30]} 8. Nd2 {[%emt 0:01:58]} Nxd4 {[%emt 0:01:18]} 9. Bxd4 {[%emt 0:03:14]} Kb8 {[%emt 0:12:05]} 10. Qa4 {[%emt 0:02:41]} b6 {[%emt 0:01:23]} 11. Bc4 {[%emt 0:05:46]} Qd7 {[%emt 0:06:51]} 12. Qxd7 {[%emt 0:01:25]} Rxd7 {[%emt 0:05:22]} 13. Bxf7 {[%emt 0:00:27]} Nf6 {[%emt 0:00:07]} 14. Bb3 {[%emt 0:01:26]} e5 {[%emt 0:00:51]} 15. Bxe5+ {[%emt 0:00:59]} Bd6 {[%emt 0:00:03]} 16. Bxd6+ {[%emt 0:10:48]} Rxd6 {[%emt 0:00:01]} 17. Nc4 {[%emt 0:01:55]} Re8+ {[%emt 0:00:15]} 18. Ne3 {[%emt 0:00:04]} Bd3 {[%emt 0:05:44]} 19. Bd1 {[%emt 0:04:24]} Nd5 {[%emt 0:02:37]} 20. Bf3 {[%emt 0:00:28]} Nxe3 {[%emt 0:01:29]} 21. fxe3 {[%emt 0:00:04]} Bc4 {[%emt 0:03:15]} 22. e4 {[%emt 0:03:36]} g5 {[%emt 0:00:34]} 23. h3 {[%emt 0:00:26]} h5 {[%emt 0:00:54]} 24. Rd1 {[%emt 0:00:57]} Rxd1+ {[%emt 0:06:20]} 25. Kxd1 {[%emt 0:00:18]} Bxa2 {[%emt 0:00:12]} 26. Bxh5 {[%emt 0:00:55]} Rxe4 {[%emt 0:00:07]} 27. Re1 {[%emt 0:00:26]} Bb3+ {[%emt 0:00:18]} 28. Kd2 {[%emt 0:00:06]} Ra4 {[%emt 0:00:15]} 29. Bf3 {[%emt 0:10:33]} Ra2 {[%emt 0:00:20]} 30. Re8+ {[%emt 0:00:45]} Kc7 {[%emt 0:00:06]} 31. Kd3 {[%emt 0:00:41]} Rxb2 {[%emt 0:02:16]} 32. Re7+ {[%emt 0:00:22]} Kd6 {[%emt 0:00:04]} 33. Rxa7 {[%emt 0:00:13]} b5 {[%emt 0:04:18]} 34. Rg7 {[%emt 0:02:11]} Bc4+ {[%emt 0:00:05]} 35. Ke3 {[%emt 0:00:53]} Rc2 {[%emt 0:00:05]} 36. Rg6+ {[%emt 0:00:37]} Ke5 {[%emt 0:01:46]} 37. Rxg5+ {[%emt 0:03:53]} Kf6 {[%emt 0:00:01]} 38. Kf4 {[%emt 0:05:37]} Rxc3 {[%emt 0:00:16]} 39. h4 {[%emt 0:00:30]} b4 {[%emt 0:00:16]} 40. h5 {[%emt 0:00:20]} Bd3 {[%emt 0:01:57]} 41. Rd5 {[%emt 0:02:11]} Rc4+ {[%emt 0:01:16]} 42. Ke3 {[%emt 0:00:29]} Bf5 {[%emt 0:04:08]} 43. Rb5 {[%emt 0:00:38]} Be6 {[%emt 0:02:43]} 44. Be4 {[%emt 0:02:07]} b3 {[%emt 0:03:13]} 45. h6 {[%emt 0:04:59]} Rc8 {[%emt 0:00:03]} 46. Kf4 {[%emt 0:01:51]} Rh8 {[%emt 0:01:13]} 47. h7 {[%emt 0:00:50]} Rf8 {[%emt 0:00:06]} 48. Rb7 {[%emt 0:02:03]} Bf7 {[%emt 0:06:46]} 49. g4 {[%emt 0:00:43]} Kg7 {[%emt 0:00:22]} 50. g5 {[%emt 0:07:21]} Kh8 {[%emt 0:00:05]} 51. Ke3 {[%emt 0:01:19]} 1-0

[Event "Hull 4NCL GM Congress 2019"]
[Site "Hull"]
[Date "2019.11.01"]
[Round "4.1"]
[White "Merry, Alan B"]
[Black "Haria, Ravi"]
[Result "1/2-1/2"]
[ECO "A84"]
[WhiteElo "2426"]
[BlackElo "2463"]
[Annotator "ChessBase"]
[PlyCount "65"]
[EventDate "2019.10.30"]
[EventType "tourn"]
[EventCountry "ENG"]
[SourceTitle "playchess.com"]
[Source "ChessBase"]
[SourceQuality "1"]
[TimeControl "5400+30"]

1. c4 {[%emt 0:00:00]} e6 {[%emt 0:01:18]} 2. Nc3 {[%emt 0:00:00]} d5 {[%emt 0:00:04]} 3. d4 {[%emt 0:00:00]} c6 {[%emt 0:00:06]} 4. e3 {[%emt 0:00:00]} f5 {[%emt 0:00:39]} 5. f4 {[%emt 0:01:25]} Qh4+ {[%emt 0:08:19]} 6. g3 {[%emt 0:00:05]} Qd8 {[%emt 0:00:34]} 7. Nf3 {[%emt 0:00:06]} Nf6 {[%emt 0:00:46]} 8. Bd3 {[%emt 0:00:06]} Be7 {[%emt 0:01:32]} 9. O-O {[%emt 0:01:20]} O-O {[%emt 0:01:15]} 10. b3 {[%emt 0:06:44]} Ne4 {[%emt 0:08:23]} 11. Bb2 {[%emt 0:00:49]} Nd7 {[%emt 0:01:27]} 12. Qe2 {[%emt 0:02:47]} b6 {[%emt 0:14:18]} 13. cxd5 {[%emt 0:06:07]} cxd5 {[%emt 0:04:55]} 14. Rac1 {[%emt 0:09:01]} a6 {[%emt 0:00:46]} 15. Rc2 {[%emt 0:03:57]} Bb7 {[%emt 0:07:59]} 16. Rfc1 {[%emt 0:00:13]} Bd6 {[%emt 0:01:20]} 17. Ne5 {[%emt 0:04:25]} b5 {[%emt 0:11:44]} 18. a4 {[%emt 0:21:16]} b4 {[%emt 0:01:30]} 19. Nb1 {[%emt 0:00:10]} a5 {[%emt 0:15:37]} 20. Nd2 {[%emt 0:15:10]} Nxd2 {[%emt 0:01:27]} 21. Qxd2 {[%emt 0:00:37]} Nf6 {[%emt 0:00:27]} 22. Bb5 {[%emt 0:02:56]} Qe7 {[%emt 0:05:42]} 23. Bc6 {[%emt 0:01:41]} Ne4 {[%emt 0:02:52]} 24. Qd1 {[%emt 0:03:16]} Rfc8 {[%emt 0:01:50]} 25. Qd3 {[%emt 0:03:33]} Bxe5 {[%emt 0:06:14]} 26. dxe5 {[%emt 0:00:30]} Rab8 {[%emt 0:00:48]} 27. Bd4 {[%emt 0:02:41]} Bxc6 {[%emt 0:00:16]} 28. Rxc6 {[%emt 0:00:04]} Qd7 {[%emt 0:00:56]} 29. Qa6 {[%emt 0:02:42]} Rxc6 {[%emt 0:00:47]} 30. Rxc6 {[%emt 0:01:50]} Nd2 {[%emt 0:00:29]} 31. Rxe6 {[%emt 0:07:20]} Nxb3 {[%emt 0:00:14]} 32. Rd6 {[%emt 0:01:10]} Qc7 {[%emt 0:00:43]} 33. Rc6 {[%emt 0:03:32]} 1/2-1/2